bitfinex/quotes_ETHUSD_20250724
["timestamp","ask_amount","ask_price","bid_price","bid_amount"]
[1753380631388,0.2377461,3739.2,3739.0,3.10335566]
[1753380631389,0.1041461,3739.2,3739.0,3.10335566]
[1753380631599,0.1041461,3739.2,3739.1,3.10334037]
[1753380632206,0.1041461,3739.2,3739.1,0.4289]
[1753380632408,0.1041461,3739.2,3739.1,3.10334037]
[1753380632622,0.1041461,3739.2,3739.1,0.4289]
[1753380632825,0.1041461,3739.2,3739.1,4.25]
[1753380633921,0.1041461,3739.2,3739.1,7.80904037]
[1753380634132,0.1041461,3739.2,3739.1,8.18838889]
[1753380635332,0.1041461,3739.2,3739.1,8.18738889]
[1753380635536,0.1041461,3739.2,3739.1,3.93838889]
[1753380635741,0.1041461,3739.2,3739.1,0.24574852]
[1753380635742,1.4652461,3739.2,3739.1,0.24574852]
[1753380636033,1.4652461,3739.2,3738.9,0.001]
[1753380636034,3.2245119,3739.0,3738.9,0.001]
[1753380636404,3.6866119,3739.0,3738.9,0.001]
[1753380637433,3.6866119,3739.0,3738.9,0.24792985]
[1753380637731,3.6866119,3739.0,3738.9,0.001]
[1753380638159,7.9429119,3739.0,3738.9,1e-08]
[1753380638806,7.4855119,3739.0,3738.9,1e-08]
[1753380639011,7.9429119,3739.0,3738.9,1e-08]
[1753380639937,17.10258319,3739.0,3738.9,1e-08]
[1753380645808,17.23618319,3739.0,3738.9,1e-08]
[1753380647214,4.6144119,3739.0,3738.9,1e-08]
[1753380647435,7.0501119,3739.0,3738.9,1e-08]
[1753380647747,10.0521119,3739.0,3738.9,1e-08]
[1753380647949,7.0521119,3739.0,3738.9,1e-08]
[1753380648112,10.0521119,3739.0,3738.9,1e-08]
[1753380649262,10.6021119,3739.0,3738.9,1e-08]
[1753380650347,6.3581119,3739.0,3738.9,1e-08]
[1753380650544,7.9226,3739.0,3738.9,1e-08]
[1753380650760,10.5971119,3739.0,3738.9,1e-08]
[1753380650908,6.3581119,3739.0,3738.9,1e-08]
[1753380651315,3.6836,3739.0,3738.9,1e-08]
[1753380651561,6.3581119,3739.0,3738.9,1e-08]
[1753380651726,7.9216,3739.0,3738.9,1e-08]
[1753380651934,10.5961119,3739.0,3738.9,1e-08]
[1753380652160,3.1336,3739.0,3738.9,0.46660001]
[1753380652449,7.3716,3739.0,3738.9,1.78490001]
[1753380652747,3.1336,3739.0,3738.9,1.78490001]
[1753380655147,0.1336,3739.0,3738.9,1.78490001]
[1753380655677,0.1041461,3739.2,3738.9,1.78490001]
[1753380655864,0.2377461,3739.2,3739.0,0.956]
[1753380656065,0.1041461,3739.2,3739.0,0.956]
[1753380656369,0.1041461,3739.2,3739.1,0.956]
[1753380659586,0.1041461,3739.2,3739.1,3.63044037]
[1753380659961,0.1041461,3739.2,3739.1,3.76404037]
[1753380662080,0.1041461,3739.2,3739.1,0.1336]
[1753380662280,0.1041461,3739.2,3738.9,1e-08]
[1753380662459,0.1041461,3739.2,3739.1,2.67444037]
[1753380662990,0.1041461,3739.2,3739.1,3.63044037]
[1753380663193,0.1041461,3739.2,3739.1,0.956]
[1753380663394,0.1041461,3739.2,3739.1,3.63044037]
[1753380663578,0.1041461,3739.2,3739.1,0.956]
[1753380663787,0.1041461,3739.2,3739.1,4.39794037]
[1753380667096,1e-08,3739.2,3739.1,4.39794037]
[1753380667302,1e-08,3739.2,3739.1,4.42468477]
[1753380668769,1e-08,3739.2,3739.1,4.39794037]
[1753380669080,1e-08,3739.2,3739.1,4.42468477]
[1753380669677,1e-08,3739.2,3739.1,7.42468477]
[1753380669918,1e-08,3739.2,3739.1,7.39794037]
[1753380670091,0.002,3740.0,3739.9,3.49906828]
[1753380670268,0.8143,3742.0,3740.1,0.8252]
[1753380670608,0.8143,3742.0,3741.1,3.4981614]
[1753380670780,0.8143,3742.0,3741.2,4.234]
[1753380670985,0.8143,3742.0,3741.3,0.4666]
[1753380671310,3.0,3742.0,3741.3,0.4666]
[1753380671495,0.7792,3742.6,3741.1,0.8252]
[1753380671496,0.7821,3742.3,3741.1,0.8252]
[1753380671684,3.0,3741.9,3741.2,2.67293916]
[1753380671887,0.9282,3742.2,3741.2,6.90692937]
[1753380672091,0.4654,3742.2,3741.2,4.234]
[1753380672270,2.80625558,3741.6,3741.2,4.234]
[1753380672786,0.1336,3741.6,3741.3,4.234]
[1753380674429,2.67272484,3741.5,3741.4,4.233]
[1753380675509,2.6728016,3741.4,3741.1,0.9588]
[1753380675805,2.67364504,3740.3,3740.2,4.233]
[1753380676586,2.67348801,3740.5,3740.2,4.233]
[1753380676779,2.67356762,3740.4,3740.2,4.233]
[1753380677107,2.67358233,3740.3,3740.1,0.1336]
[1753380677305,2.67358233,3740.3,3740.2,4.233]
[1753380677608,2.6735309,3740.4,3740.2,4.233]
[1753380677923,0.1336,3740.6,3740.2,4.233]
[1753380678122,2.80697122,3740.6,3740.2,4.6623]
[1753380678288,2.67343937,3740.5,3740.2,4.6623]
[1753380678489,0.1336,3740.6,3740.2,4.6623]
[1753380678675,2.80698851,3740.6,3740.2,4.6623]
[1753380679184,0.1336,3740.6,3740.2,4.6623]
[1753380679389,0.55,3740.8,3740.3,0.9271]
[1753380679610,2.67330811,3740.7,3740.4,0.4293]
[1753380680013,3.35684763,3740.8,3740.4,0.4293]
[1753380680678,0.6836,3740.8,3740.4,0.4293]
[1753380681118,3.35682884,3740.8,3740.4,0.4293]
[1753380682185,3.35682884,3740.8,3740.3,0.4978]
[1753380682421,3.35682884,3740.8,3740.3,0.9271]
[1753380682604,2.67329943,3740.7,3740.2,4.233]
[1753380683309,2.67329644,3740.7,3740.2,4.233]
[1753380683519,2.67329644,3740.7,3739.8,2.67393842]
[1753380683520,0.55,3740.2,3739.6,0.4293]
[1753380683684,3.22367681,3740.2,3739.8,4.232]
[1753380683883,0.55,3740.2,3739.9,0.4293]
[1753380685716,0.55,3740.2,3739.8,6.90592091]
[1753380685918,0.55,3740.2,3740.0,0.4293]
[1753380686088,0.55,3740.2,3740.1,4.232]
[1753380687288,4.232,3741.2,3740.1,5.1591]
[1753380687623,3.0,3740.7,3740.2,0.4293]
[1753380687819,0.55,3740.7,3740.3,0.4293]
[1753380688027,0.55,3740.7,3740.4,4.232]
[1753380688221,0.55,3740.7,3740.5,3.60053276]
[1753380688622,0.55,3740.7,3740.5,0.4293]
[1753380688797,0.55,3740.7,3740.4,4.232]
[1753380689192,0.55,3740.7,3740.5,2.6734248]
[1753380689392,0.55,3740.7,3740.4,7.33478891]
[1753380689911,0.55,3740.7,3740.5,2.67342891]
[1753380690123,0.55,3740.7,3740.5,3.10273173]
[1753380690930,3.8025,3741.1,3741.0,2.67308206]
[1753380690931,0.002,3741.1,3741.0,2.67308206]
[1753380691116,0.002,3741.1,3741.0,3.73378206]
[1753380691618,0.002,3741.1,3741.0,3.23598206]
[1753380692215,0.002,3741.1,3740.9,4.232]
[1753380692416,0.002,3741.1,3740.8,0.1336]
[1753380692601,0.002,3741.1,3740.9,4.232]
[1753380692808,0.002,3741.1,3740.9,6.90514494]
[1753380693328,0.002,3741.1,3740.9,4.232]
[1753380694126,0.002,3741.1,3740.9,6.90514844]
[1753380694429,0.002,3741.1,3740.9,2.67314844]
[1753380694633,0.002,3741.1,3741.0,4.232]
[1753380697093,0.002,3741.1,3740.8,0.1336]
[1753380697293,0.002,3741.1,3740.9,4.231]
[1753380697528,0.002,3741.1,3740.4,1.1947]
[1753380697529,0.002,3741.1,3740.5,0.7654]
[1753380697730,3.35861648,3741.1,3740.6,4.231]
[1753380698032,3.35861648,3741.1,3740.5,0.899]
[1753380698033,2.67321414,3740.9,3740.5,0.1336]
[1753380698195,0.6856,3741.1,3740.6,4.231]
[1753380698519,0.41326985,3741.0,3740.6,4.231]
[1753380698745,0.41326985,3741.0,3740.5,0.1336]
[1753380698921,0.41326985,3741.0,3740.7,4.231]
[1753380699098,0.41326985,3741.0,3740.5,0.5629]
[1753380699435,0.41326985,3741.0,3740.8,2.67317381]
[1753380699739,0.002,3741.1,3740.8,2.67317381]
[1753380699740,0.002,3741.1,3740.9,0.9271]
[1753380699889,0.002,3741.1,3741.0,4.231]
[1753380700093,0.002,3741.1,3741.0,4.6603]
[1753380700494,0.002,3741.1,3741.0,4.231]
[1753380701132,0.552,3741.1,3740.8,0.1336]
[1753380701331,0.552,3741.1,3740.7,4.23]
[1753380701332,2.67323522,3740.8,3740.7,4.23]
[1753380701500,3.77143115,3740.8,3740.7,4.23]
[1753380701701,3.90503115,3740.8,3740.7,4.23]
[1753380702205,2.34799593,3740.8,3740.0,0.001]
[1753380702560,0.6836,3740.3,3740.1,4.23]
[1753380702961,3.3571977,3740.3,3740.1,4.23]
[1753380703136,2.67365381,3740.2,3740.1,4.23]
[1753380703465,3.35719768,3740.3,3740.1,4.23]
[1753380703772,0.6836,3740.3,3740.1,4.23]
[1753380703918,0.1336,3740.8,3740.3,2.67358233]
[1753380704118,2.6731711,3740.9,3740.4,5.1571]
[1753380704340,0.6836,3741.0,3740.0,0.001]
[1753380704341,0.55,3740.4,3740.0,0.001]
[1753380704524,2.80709246,3740.5,3740.1,4.23]
[1753380704729,0.55,3740.4,3740.1,4.23]
[1753380704948,1.15303889,3740.4,3740.1,4.23]
[1753380705149,0.7727,3740.4,3740.1,4.23]
[1753380705359,3.44622636,3740.4,3740.1,4.23]
[1753380705562,0.55,3740.4,3740.1,4.23]
[1753380706139,2.67353565,3740.4,3740.1,4.23]
[1753380707055,0.55,3740.3,3740.1,4.23]
[1753380707354,3.35725381,3740.2,3740.1,4.23]
[1753380707526,4.15865381,3740.2,3740.1,4.23]
[1753380707864,1.485,3740.2,3740.1,4.23]
[1753380708480,2.67310907,3741.0,3740.1,5.1128]
[1753380708481,0.55,3740.4,3740.1,5.1128]
[1753380708641,3.22351597,3740.4,3740.1,4.23]
[1753380708963,1.15304913,3740.4,3740.0,4.231]
[1753380709273,0.55,3740.1,3740.0,4.231]
[1753380709475,0.55,3740.1,3740.0,0.001]
[1753380709476,3.2237253,3740.1,3740.0,0.001]
[1753380709618,4.1429253,3740.1,3740.0,0.001]
[1753380709820,3.6757253,3740.1,3740.0,0.001]
[1753380710038,3.99887761,3740.1,3740.0,0.001]
[1753380710243,7.91807761,3740.1,3740.0,0.001]
[1753380710443,8.70457761,3740.1,3740.0,0.001]
[1753380710641,18.11426571,3740.1,3740.0,1e-08]
[1753380710944,18.26428768,3740.1,3740.0,1e-08]
[1753380711154,3.22444037,3739.1,3739.0,0.001]
[1753380711377,11.96441952,3739.1,3739.0,0.001]
[1753380711576,12.88361952,3739.1,3739.0,0.001]
[1753380712158,7.73441952,3739.1,3739.0,0.001]
[1753380712967,4.73441952,3739.1,3739.0,0.001]
[1753380714280,1.27347915,3739.1,3739.0,0.001]
[1753380714481,3.94791952,3739.1,3739.0,0.001]
[1753380715356,1.27347915,3739.1,3739.0,0.001]
[1753380715555,5.50347915,3739.1,3739.0,0.001]
[1753380715768,1.27347915,3739.1,3739.0,0.001]
[1753380715970,0.1336,3739.1,3739.0,0.001]
[1753380716186,3.0,3739.4,3739.0,0.8838]
[1753380716348,3.1336,3739.4,3739.1,0.8828]
[1753380716747,3.1336,3739.4,3739.0,0.001]
[1753380717083,5.67444037,3739.1,3739.0,0.001]
[1753380717250,11.89954959,3739.1,3739.0,0.001]
[1753380717450,12.81874959,3739.1,3739.0,0.001]
[1753380717760,13.58304959,3739.1,3739.0,0.001]
[1753380717954,9.35304959,3739.1,3739.0,0.001]
[1753380718156,8.43384959,3739.1,3739.0,0.001]
[1753380718488,12.66384959,3739.1,3739.0,0.001]
[1753380719345,13.58304959,3739.1,3739.0,0.001]
[1753380720153,9.35304959,3739.1,3739.0,0.001]
[1753380720482,13.11584959,3739.1,3739.0,0.001]
[1753380720691,13.58304959,3739.1,3739.0,0.001]
[1753380720985,13.58304959,3739.1,3739.0,1e-08]
[1753380722501,4.03409805,3738.6,3738.5,1e-08]
[1753380722694,11.26409805,3738.6,3738.5,1e-08]
[1753380722851,12.31689805,3738.6,3738.5,1e-08]
[1753380723472,12.18329805,3738.6,3738.5,1e-08]
[1753380723683,2.67425793,3739.4,3737.6,0.8314]
[1753380723883,1.1,3739.5,3737.8,0.8314]
[1753380724200,4.23,3739.3,3737.9,0.8828]
[1753380724378,0.55,3738.7,3738.0,2.6751565]
[1753380724693,3.55,3738.8,3738.1,3.10610067]
[1753380724990,0.55,3738.7,3738.1,0.431]
[1753380725181,0.55,3738.7,3737.8,1.2624]
[1753380725182,0.55,3738.3,3737.8,1.2624]
[1753380725377,0.55,3738.3,3737.8,0.8314]
[1753380725587,3.22503077,3738.3,3737.9,0.431]
[1753380725892,3.22495866,3738.4,3737.9,0.431]
[1753380726103,3.22495866,3738.4,3737.8,1.2832]
[1753380726104,0.55,3738.1,3737.8,0.8314]
[1753380726259,0.55,3738.1,3737.8,1.2624]
[1753380726457,0.55,3738.1,3737.9,0.8828]
[1753380726775,0.55,3738.2,3737.9,0.8828]
[1753380726972,0.55,3738.2,3737.9,0.4518]
[1753380727172,0.55,3738.2,3738.0,0.431]
[1753380727367,3.0,3738.4,3738.1,0.8828]
[1753380727583,3.0,3738.4,3738.1,0.4518]
[1753380727791,0.55,3738.3,3738.2,0.431]
[1753380727999,0.55,3738.3,3737.8,1.2624]
[1753380728180,0.55,3738.3,3737.8,0.8314]
[1753380728373,0.55,3738.3,3737.9,0.8828]
[1753380728574,0.55,3738.3,3737.8,0.8314]
[1753380728884,0.55,3738.3,3738.0,0.431]
[1753380729085,0.55,3738.4,3738.0,0.431]
[1753380729398,0.55,3738.4,3738.1,0.8828]
[1753380729900,0.55,3738.4,3738.2,0.8828]
[1753380730073,4.23,3738.9,3738.2,0.8828]
[1753380730274,4.23,3738.9,3738.3,0.8828]
[1753380730275,3.0,3738.8,3738.3,0.8828]
[1753380730479,0.55,3738.7,3738.3,0.8828]
[1753380730664,0.55,3738.7,3738.4,0.8828]
[1753380731066,3.22472817,3738.7,3738.4,0.8828]
[1753380731285,0.55,3738.7,3738.4,0.8828]
[1753380731501,0.55,3738.7,3737.9,0.8026]
[1753380731800,0.55,3738.7,3738.5,0.8828]
[1753380732191,0.8162,3739.3,3738.5,0.8828]
[1753380732192,3.43220671,3739.6,3738.8,2.67465496]
[1753380732497,6.90396658,3739.8,3738.9,0.8828]
[1753380732705,6.90396658,3739.8,3738.8,2.67463055]
[1753380732706,0.7581,3740.0,3739.0,0.8828]
[1753380732909,0.7581,3740.0,3738.7,0.7994]
[1753380732910,2.67404853,3739.7,3739.1,0.431]
[1753380733069,3.0,3739.7,3739.1,0.8828]
[1753380733473,0.6836,3739.6,3739.1,1.0164]
[1753380733827,2.6744657,3739.1,3738.7,0.7994]
[1753380734101,6.74022215,3739.7,3738.4,0.7813]
[1753380734102,3.22472588,3738.8,3738.4,0.7813]
[1753380734300,0.55,3738.8,3738.5,0.8828]
[1753380734489,0.55,3738.9,3738.4,0.7813]
[1753380734796,0.55,3738.9,3738.6,0.8828]
[1753380734965,0.55,3738.9,3738.7,0.4518]
[1753380735166,0.55,3738.9,3738.7,0.8828]
[1753380736418,2.67415893,3739.5,3738.8,3.59215496]
[1753380736565,0.1336,3739.3,3738.9,0.001]
[1753380737002,2.80796487,3739.3,3738.9,0.001]
[1753380737182,2.80796487,3739.3,3738.9,0.9185]
[1753380737381,2.67436884,3739.2,3738.9,0.9185]
[1753380737701,2.80791276,3739.3,3738.9,0.9185]
[1753380738280,2.67437776,3739.2,3738.9,0.9185]
[1753380738491,2.6745119,3739.0,3738.9,0.001]
[1753380738798,3.3581119,3739.0,3738.9,0.001]
[1753380738977,0.6836,3739.0,3738.9,0.001]
[1753380739182,3.3581119,3739.0,3738.9,0.001]
[1753380740133,3.0,3739.2,3738.9,0.9185]
[1753380740334,3.0,3739.2,3739.0,0.9175]
[1753380740533,3.0,3739.2,3738.9,0.001]
[1753380740841,3.55,3739.2,3739.1,0.9175]
[1753380741149,3.22436884,3739.2,3739.1,0.9175]
[1753380741839,2.67448833,3739.1,3738.9,0.001]
[1753380742034,3.2243919,3739.2,3738.9,0.9185]
[1753380742240,3.55,3739.2,3739.0,0.9175]
[1753380742441,3.55,3739.2,3738.9,0.001]
[1753380742736,0.55,3739.2,3739.1,0.9175]
[1753380742952,3.55,3739.2,3739.1,0.9175]
[1753380743234,3.55,3739.2,3739.1,1.7222]
[1753380743435,0.55,3739.2,3739.1,1.7222]
[1753380743868,3.0,3739.1,3738.9,0.001]
[1753380744000,0.55,3739.2,3739.0,0.9175]
[1753380744341,0.55,3739.2,3739.1,0.9175]
[1753380744906,0.55,3739.2,3738.9,0.001]
[1753380745151,3.0,3739.1,3738.9,0.001]
[1753380745357,6.2245119,3739.0,3738.9,0.001]
[1753380745512,7.3070119,3739.0,3738.9,0.001]
[1753380746740,8.1186119,3739.0,3738.9,0.001]
[1753380747657,2.67537508,3737.8,3737.6,0.1336]
[1753380748024,2.67544211,3737.7,3737.5,0.001]
[1753380748331,3.22551369,3737.6,3737.5,0.001]
[1753380748521,3.35911369,3737.6,3737.5,0.001]
[1753380748723,6.35911369,3737.6,3737.5,0.001]
[1753380749630,10.58811369,3737.6,3737.5,0.001]
[1753380750154,7.58811369,3737.6,3737.5,0.001]
[1753380751023,13.2187626,3737.6,3737.5,0.001]
[1753380751222,13.2187626,3737.6,3737.2,1e-08]
[1753380751223,4.00142846,3737.3,3737.2,1e-08]
[1753380751535,7.00142846,3737.3,3737.2,1e-08]
[1753380751853,10.45472846,3737.3,3737.2,1e-08]
[1753380752461,11.75698466,3737.3,3737.2,1e-08]
[1753380752672,12.70588466,3737.3,3737.2,1e-08]
[1753380754651,13.50678466,3737.3,3737.2,1e-08]
[1753380755176,9.27778466,3737.3,3737.2,1e-08]
[1753380755475,13.05768466,3737.3,3737.2,1e-08]
[1753380755779,12.55888466,3737.3,3737.2,1e-08]
[1753380756347,13.50778466,3737.3,3737.2,1e-08]
[1753380756856,7.02061487,3736.9,3736.8,1e-08]
[1753380757056,12.45283914,3736.9,3736.8,1e-08]
[1753380757255,12.95163914,3736.9,3736.8,1e-08]
[1753380757455,13.40173914,3736.9,3736.8,1e-08]
[1753380757770,4.3446,3736.9,3736.8,1e-08]
[1753380757935,10.45501487,3736.9,3736.8,1e-08]
[1753380759948,12.20241487,3736.9,3736.8,1e-08]
[1753380760266,12.20341487,3736.9,3736.8,1e-08]
[1753380760454,11.75331487,3736.9,3736.8,1e-08]
[1753380760650,13.19624662,3736.9,3736.8,1e-08]
[1753380761077,13.32984662,3736.9,3736.8,1e-08]
[1753380762541,13.77994662,3736.9,3736.8,1e-08]
[1753380763681,9.54994662,3736.9,3736.8,1e-08]
[1753380763859,13.77994662,3736.9,3736.8,1e-08]
[1753380765194,8.60104662,3736.9,3736.8,1e-08]
[1753380765413,12.83104662,3736.9,3736.8,1e-08]
[1753380765560,13.74554662,3736.9,3736.8,1e-08]
[1753380767159,9.05654662,3736.9,3736.8,1e-08]
[1753380767410,12.83104662,3736.9,3736.8,1e-08]
[1753380768069,8.60104662,3736.9,3736.8,1e-08]
[1753380768406,12.83104662,3736.9,3736.8,1e-08]
[1753380768781,8.60104662,3736.9,3736.8,1e-08]
[1753380768979,12.83104662,3736.9,3736.8,1e-08]
[1753380770204,3.1336,3736.9,3736.8,1e-08]
[1753380770427,0.1336,3736.9,3736.8,0.88700001]
[1753380770702,4.23,3737.1,3736.8,0.88700001]
[1753380770906,6.962,3737.8,3736.8,0.88700001]
[1753380771063,6.962,3737.8,3737.0,0.1336]
[1753380771064,2.80912458,3737.6,3737.0,0.1336]
[1753380771261,2.80912458,3737.6,3737.1,0.887]
[1753380771262,4.23,3737.5,3737.1,0.887]
[1753380771503,4.23,3737.5,3737.2,0.887]
[1753380771712,4.23,3737.5,3737.3,0.887]
[1753380771880,6.90558658,3737.5,3737.4,0.887]
[1753380772398,4.78,3737.5,3737.4,0.887]
[1753380772570,7.45558528,3737.5,3737.4,0.887]
[1753380772766,0.55,3737.5,3737.4,0.887]
[1753380772999,0.1336,3737.6,3737.4,1.6764]
[1753380773183,4.23,3737.6,3737.5,0.887]
[1753380774305,4.23,3737.7,3737.5,0.887]
[1753380774512,4.23,3737.7,3737.6,0.887]
[1753380774670,4.23,3737.7,3737.4,0.7894]
[1753380775208,4.23,3737.7,3736.9,2.6760055]
[1753380775209,2.67571885,3737.4,3736.9,0.887]
[1753380775505,0.55,3737.1,3736.9,0.887]
[1753380775704,4.23,3737.0,3736.9,0.4572]
[1753380776401,4.23,3737.0,3736.9,0.887]
[1753380776977,6.90594327,3737.0,3736.9,0.887]
[1753380777506,3.22601487,3736.9,3736.8,1e-08]
[1753380777915,6.22601487,3736.9,3736.8,1e-08]
[1753380778212,7.779,3736.9,3736.8,0.88700001]
[1753380778515,3.55,3736.9,3736.8,0.88700001]
[1753380779010,10.45501487,3736.9,3736.8,1e-08]
[1753380779211,11.7814641,3736.9,3736.8,1e-08]
[1753380779614,12.2404641,3736.9,3736.8,1e-08]
[1753380779799,13.4676641,3736.9,3736.8,1e-08]
[1753380780804,10.45501487,3736.9,3736.8,1e-08]
[1753380781582,6.22601487,3736.9,3736.8,0.42980001]
[1753380781830,0.55,3736.9,3736.8,0.88700001]
[1753380781985,0.002,3737.3,3736.8,0.88700001]
[1753380782188,0.002,3737.3,3736.9,1.70126014]
[1753380782511,0.002,3737.3,3737.0,0.1336]
[1753380782906,0.002,3737.3,3737.1,2.67586704]
[1753380783216,0.002,3737.3,3737.0,3.69648784]
[1753380783421,0.002,3737.3,3737.1,0.887]
[1753380783992,0.002,3737.3,3737.2,0.887]
[1753380784153,2.67772846,3737.3,3737.2,0.887]
[1753380784439,2.67772846,3737.3,3736.8,1e-08]
[1753380784440,3.2258708,3737.2,3736.8,1e-08]
[1753380784741,4.779,3737.2,3736.8,1e-08]
[1753380785045,7.4548013,3737.2,3736.9,0.887]
[1753380785757,0.55,3736.9,3736.8,1e-08]
[1753380785953,0.55,3736.9,3736.8,0.88700001]
[1753380786443,0.002,3737.3,3736.8,1.32217022]
[1753380786641,0.1336,3737.2,3736.9,0.887]
[1753380786954,0.1336,3737.2,3737.0,0.887]
[1753380787114,0.1336,3737.2,3737.1,0.4298]
[1753380787319,0.6836,3737.2,3737.1,0.887]
[1753380787653,0.6856,3737.3,3737.1,0.887]
[1753380787871,0.6856,3737.3,3737.2,0.887]
[1753380788350,3.22601487,3736.9,3736.8,1e-08]
[1753380788565,7.58761487,3736.9,3736.8,1e-08]
[1753380789353,7.58761487,3736.9,3736.8,0.88700001]
[1753380789354,4.9116,3736.9,3736.8,0.88700001]
[1753380789757,0.6836,3736.9,3736.8,1e-08]
[1753380789916,7.58761487,3736.9,3736.8,1e-08]
[1753380790552,3.35961487,3736.9,3736.8,1e-08]
[1753380790729,7.58761487,3736.9,3736.8,1e-08]
[1753380791951,8.61396402,3736.9,3736.8,1e-08]
[1753380793777,8.61396402,3736.9,3736.8,0.88700001]
[1753380793778,0.6836,3736.9,3736.8,0.88700001]
[1753380793965,4.228,3736.9,3736.8,0.88700001]
[1753380794621,6.90401487,3736.9,3736.8,0.88700001]
[1753380795261,4.228,3736.9,3736.8,0.88700001]
[1753380795960,6.90296471,3737.0,3736.8,0.88700001]
[1753380796488,9.90296471,3737.0,3736.9,0.895]
[1753380797448,2.67601487,3736.9,3736.8,1e-08]
[1753380799124,3.22601487,3736.9,3736.8,1e-08]
[1753380799326,3.35961487,3736.9,3736.8,1e-08]
[1753380801772,0.55,3737.1,3736.9,0.7988]
[1753380802002,3.22589806,3737.1,3737.0,0.895]
[1753380802281,2.67594327,3737.0,3736.8,1e-08]
[1753380802441,2.67601487,3736.9,3736.8,1e-08]
[1753380802799,7.58561487,3736.9,3736.8,1e-08]
[1753380804010,3.35961487,3736.9,3736.8,1e-08]
[1753380804139,0.1336,3736.9,3736.8,0.89500001]
[1753380804346,4.226,3737.0,3736.8,1.69380001]
[1753380804576,4.226,3737.1,3736.8,1.69380001]
[1753380804874,0.002,3737.2,3736.9,3.57096086]
[1753380805076,0.002,3737.2,3736.8,0.79880001]
[1753380805278,0.55,3737.0,3736.8,1.69380001]
[1753380805442,3.2259967,3737.0,3736.8,1.69380001]
[1753380805639,2.67601487,3736.9,3736.8,1e-08]
[1753380806775,4.775,3737.0,3736.8,0.89500001]
[1753380806941,4.775,3737.0,3736.8,1e-08]
[1753380807142,4.775,3737.0,3736.9,0.895]
[1753380807381,7.45094879,3737.0,3736.9,0.895]
[1753380807575,0.55,3737.0,3736.9,0.895]
[1753380808856,0.55,3737.0,3736.9,0.4425]
[1753380809167,3.22594327,3737.0,3736.9,0.895]
[1753380809684,0.002,3737.2,3736.9,0.895]
[1753380809873,0.002,3737.2,3736.9,0.1336]
[1753380810080,2.67587166,3737.1,3736.8,1e-08]
[1753380810388,2.67587166,3737.1,3736.9,0.895]
[1753380810586,0.55,3737.0,3736.8,1e-08]
[1753380810889,2.67601487,3736.9,3736.8,1e-08]
[1753380811193,3.22601487,3736.9,3736.8,1e-08]
[1753380811856,4.225,3737.1,3736.9,0.7594]
[1753380812066,0.002,3737.2,3737.0,0.895]
[1753380812275,0.002,3737.2,3737.1,0.895]
[1753380812276,4.226,3737.2,3737.1,0.895]
[1753380812486,0.002,3737.2,3737.1,0.895]
[1753380817519,0.002,3737.2,3737.1,3.70447166]
[1753380820493,0.002,3737.2,3737.1,7.92847166]
[1753380824597,0.002,3737.2,3737.1,8.71137166]
[1753380825295,0.002,3737.2,3737.1,25.90480666]
[1753380825647,0.002,3737.2,3737.1,11.71137166]
[1753380825849,0.002,3737.2,3737.1,23.97013578]
[1753380826011,0.002,3737.2,3737.1,23.43221378]
[1753380826407,0.002,3737.2,3737.1,42.15115478]
[1753380826608,0.002,3737.2,3737.1,26.60147578]
[1753380827228,0.002,3737.2,3737.1,26.24712778]
[1753380827530,0.002,3737.2,3737.1,25.70920578]
[1753380827737,0.002,3737.2,3737.1,9.84217678]
[1753380827904,0.002,3737.2,3737.1,14.06417678]
[1753380828309,0.002,3737.2,3737.1,3.27130512]
[1753380828513,0.002,3737.2,3737.1,6.06]
[1753380828922,0.002,3737.2,3737.1,0.9165]
[1753380829229,0.002,3737.2,3737.1,0.1336]
[1753380829428,0.002,3737.2,3737.1,4.3546]
[1753380829629,0.002,3737.2,3737.1,0.1336]
[1753380829836,0.002,3737.2,3737.1,4.3546]
[1753380830129,0.002,3737.2,3737.1,5.2771]
[1753380830355,0.002,3737.2,3737.1,8.39455151]
[1753380830631,0.002,3737.2,3737.1,8.3677928]
[1753380832937,0.002,3737.2,3737.1,9.1738928]
[1753380833432,0.002,3737.2,3737.1,9.1728928]
[1753380833730,0.002,3737.2,3737.1,6.49702114]
[1753380834326,0.002,3737.2,3737.1,8.75807166]
[1753380834656,0.002,3737.2,3737.1,6.0822]
[1753380836233,0.002,3737.2,3737.1,5.2761]
[1753380837338,0.002,3737.2,3737.1,1.0561]
[1753380837499,0.002,3737.2,3737.1,0.1336]
[1753380837705,0.002,3737.2,3736.9,0.001]
[1753380837706,0.7566,3737.0,3736.9,0.001]
[1753380838025,5.33378328,3737.0,3736.9,0.001]
[1753380838218,5.46738328,3737.0,3736.9,0.001]
[1753380838613,5.01288328,3737.0,3736.9,0.001]
[1753380838813,4.55138328,3737.0,3736.9,0.001]
[1753380839240,5.46738328,3737.0,3736.9,0.001]
[1753380839804,8.46738328,3737.0,3736.9,0.001]
[1753380840747,8.01288328,3737.0,3736.9,0.001]
[1753380840910,8.46738328,3737.0,3736.9,0.001]
[1753380843617,6.22601487,3736.9,3736.8,1e-08]
[1753380843840,9.71460716,3736.9,3736.8,1e-08]
[1753380844841,13.93360716,3736.9,3736.8,1e-08]
[1753380846564,13.93460716,3736.9,3736.8,1e-08]
[1753380846771,9.26010716,3736.9,3736.8,1e-08]
[1753380847563,9.71460716,3736.9,3736.8,1e-08]